bitfinex/quotes_BTCUSD_20241201
["timestamp","ask_amount","ask_price","bid_price","bid_amount"]
[1733025731755,0.207453,96408.0,96399.0,0.00457559]
[1733025731961,0.207453,96408.0,96399.0,0.0321591]
[1733025733249,0.207461,96404.0,96399.0,0.0341591]
[1733025733476,0.207461,96404.0,96399.0,0.03232318]
[1733025734135,0.207461,96404.0,96399.0,0.03332318]
[1733025734777,0.207461,96404.0,96399.0,0.02874759]
[1733025735445,0.207461,96404.0,96399.0,0.02674759]
[1733025735659,0.207461,96404.0,96399.0,0.02374759]
[1733025735877,0.207461,96404.0,96399.0,0.02474759]
[1733025736086,0.207461,96404.0,96399.0,0.02374759]
[1733025736581,0.207461,96404.0,96399.0,0.02474759]
[1733025736739,0.207452,96408.0,96399.0,0.02474759]
[1733025736954,0.207452,96408.0,96399.0,0.02931677]
[1733025737381,0.207452,96408.0,96399.0,0.03115269]
[1733025737805,0.285341,96413.0,96399.0,0.03115269]
[1733025738042,0.207451,96409.0,96399.0,0.03115269]
[1733025738263,0.207451,96409.0,96399.0,0.02931677]
[1733025738495,0.207451,96409.0,96399.0,0.03115268]
[1733025738705,0.207451,96409.0,96399.0,0.00840509]
[1733025739368,0.285341,96413.0,96399.0,0.00840509]
[1733025739827,0.20745,96409.0,96399.0,0.00840509]
[1733025740188,0.20745,96409.0,96399.0,0.01013329]
[1733025740760,0.20745,96409.0,96399.0,0.00829738]
[1733025741187,0.20745,96409.0,96399.0,0.01013329]
[1733025743780,0.207458,96405.0,96399.0,0.00829738]
[1733025743978,0.207458,96405.0,96399.0,0.0037282]
[1733025744396,0.0471,96423.0,96399.0,0.28130421]
[1733025744397,0.207433,96417.0,96399.0,0.28130421]
[1733025744530,0.207433,96417.0,96399.0,0.28487325]
[1733025745204,0.207442,96413.0,96399.0,0.28487325]
[1733025745410,0.0018641,96400.0,96399.0,0.28587325]
[1733025745879,0.0008641,96400.0,96399.0,0.28387325]
[1733025746086,0.0018641,96400.0,96399.0,0.28687325]
[1733025746529,0.0008641,96400.0,96399.0,0.28387325]
[1733025746930,0.0028641,96400.0,96399.0,0.28987325]
[1733025747169,0.0028641,96400.0,96399.0,0.28687325]
[1733025747375,0.0018641,96400.0,96399.0,0.28687325]
[1733025747544,0.0028641,96400.0,96399.0,0.28987325]
[1733025748753,0.0028641,96400.0,96399.0,0.24107325]
[1733025749687,0.207441,96413.0,96399.0,0.24107325]
[1733025749929,0.207441,96413.0,96400.0,0.05238054]
[1733025750104,0.207441,96413.0,96400.0,0.13376446]
[1733025750311,0.207441,96413.0,96401.0,0.00456319]
[1733025750518,0.207441,96413.0,96402.0,0.00183581]
[1733025750882,0.20745,96409.0,96402.0,0.00183581]
[1733025751076,0.20745,96409.0,96403.0,0.00456142]
[1733025751305,0.207443,96412.0,96403.0,0.00639727]
[1733025751537,0.414886,96412.0,96404.0,0.00183582]
[1733025751732,0.207443,96412.0,96404.0,0.00183582]
[1733025751909,0.207443,96412.0,96405.0,0.00455965]
[1733025752566,0.001,96409.0,96406.0,0.01269871]
[1733025752789,0.0779,96419.0,96411.0,0.207443]
[1733025752994,0.0779,96419.0,96412.0,0.00183565]
[1733025753405,0.0779,96419.0,96412.0,0.00638912]
[1733025753606,0.0779,96419.0,96412.0,0.00183565]
[1733025753812,0.0779,96419.0,96409.0,0.08138392]
[1733025753813,0.0779,96419.0,96413.0,0.03361975]
[1733025753994,0.207419,96424.0,96413.0,0.03361975]
[1733025754212,0.207421,96422.0,96413.0,0.0354554]
[1733025754450,0.207421,96422.0,96413.0,0.03545541]
[1733025755156,0.207421,96422.0,96413.0,0.00638825]
[1733025755403,0.207433,96417.0,96413.0,0.00638825]
[1733025755660,0.207423,96421.0,96407.0,0.207453]
[1733025755888,0.207423,96421.0,96408.0,0.00183566]
[1733025756113,0.001,96422.0,96409.0,0.00183566]
[1733025756299,0.207425,96420.0,96410.0,0.04329162]
[1733025756558,0.207425,96420.0,96411.0,0.00183567]
[1733025756559,0.207434,96416.0,96411.0,0.00183567]
[1733025756789,0.207434,96416.0,96410.0,0.04784686]
[1733025756790,0.207435,96416.0,96410.0,0.04784686]
[1733025757003,0.207425,96420.0,96410.0,0.04784686]
[1733025757004,0.207425,96420.0,96410.0,0.04329162]
[1733025757220,0.207435,96416.0,96411.0,0.00183567]
[1733025757430,0.207435,96416.0,96411.0,0.00455436]
[1733025757431,0.23037999,96415.0,96411.0,0.00455436]
[1733025757644,0.207451,96408.0,96407.0,0.001]
[1733025758077,0.207451,96408.0,96407.0,0.002]
[1733025758078,0.287151,96408.0,96407.0,0.002]
[1733025758285,0.207454,96407.0,96403.0,0.00059599]
[1733025758516,0.0797,96408.0,96403.0,0.00059599]
[1733025758919,0.207456,96406.0,96403.0,0.00059599]
[1733025759131,0.20746,96404.0,96403.0,0.00059599]
[1733025759825,0.20746,96404.0,96403.0,0.00459599]
[1733025760729,0.28420118,96404.0,96403.0,0.00459599]
[1733025760957,0.2823664,96404.0,96403.0,0.00459599]
[1733025761629,0.20746,96404.0,96403.0,0.00059599]
[1733025762301,0.20846,96404.0,96403.0,0.00859599]
[1733025762303,0.21029478,96404.0,96403.0,0.00859599]
[1733025763440,0.20846,96404.0,96403.0,0.00859599]
[1733025763924,0.2093241,96404.0,96403.0,0.00859599]
[1733025769394,0.0018641,96404.0,96403.0,0.00859599]
[1733025769869,0.0018641,96404.0,96403.0,0.01556844]
[1733025770485,0.0018641,96404.0,96403.0,0.02013211]
[1733025770880,0.0018641,96404.0,96403.0,0.01315966]
[1733025771864,0.0018641,96404.0,96403.0,0.00859599]
[1733025772282,0.0018641,96404.0,96403.0,0.01315861]
[1733025779935,0.0018641,96404.0,96403.0,0.39538146]
[1733025780129,0.0018641,96404.0,96403.0,0.16140382]
[1733025780331,0.0018641,96404.0,96403.0,0.2660709]
[1733025780531,0.0018641,96404.0,96403.0,0.26423528]
[1733025780740,0.0008641,96412.0,96411.0,0.207445]
[1733025780948,0.0008641,96412.0,96411.0,0.20928063]
[1733025781186,0.0008641,96412.0,96411.0,0.21383655]
[1733025781414,0.0008641,96412.0,96411.0,0.24815347]
[1733025781619,0.0008641,96412.0,96411.0,0.24631784]
[1733025781844,0.0008641,96412.0,96411.0,0.24831784]
[1733025782053,0.0008641,96412.0,96411.0,0.3906488]
[1733025782257,0.0008641,96412.0,96411.0,0.1832038]
[1733025782493,0.0008641,96412.0,96411.0,0.18503941]
[1733025782686,0.0008641,96412.0,96411.0,0.18503326]
[1733025784755,0.0008641,96412.0,96411.0,0.04570845]
[1733025790399,0.0008641,96412.0,96411.0,0.24239011]
[1733025790617,0.0008641,96412.0,96411.0,0.05479618]
[1733025790825,0.0008641,96412.0,96411.0,0.26403168]
[1733025791056,0.0008641,96412.0,96411.0,0.26219618]
[1733025791504,0.0008641,96412.0,96411.0,0.37504139]
[1733025791647,0.0008641,96412.0,96411.0,0.65167887]
[1733025791868,0.0008641,96412.0,96411.0,0.37004139]
[1733025792523,0.0018641,96412.0,96411.0,0.6534614]
[1733025793199,0.0018641,96412.0,96411.0,0.37504139]
[1733025793611,0.0018641,96412.0,96411.0,0.6564614]
[1733025794008,0.0008641,96412.0,96411.0,0.6514614]
[1733025794254,0.0018641,96412.0,96411.0,0.40104139]
[1733025794681,0.0028641,96412.0,96411.0,0.41004139]
[1733025794902,0.0018641,96412.0,96411.0,0.40204139]
[1733025795126,0.0008641,96412.0,96411.0,0.37004139]
[1733025795350,0.0018641,96412.0,96411.0,0.44069269]
[1733025795583,0.0018641,96412.0,96411.0,0.20879618]
[1733025795805,0.0018641,96412.0,96411.0,0.2206317]
[1733025796052,0.0018641,96412.0,96411.0,0.21879618]
[1733025796302,0.0028641,96412.0,96411.0,0.03047926]
[1733025796521,0.0028641,96412.0,96411.0,0.03231485]
[1733025796737,0.0823641,96412.0,96411.0,0.02447926]
[1733025797163,0.0823641,96412.0,96411.0,0.03047926]
[1733025797164,0.0833641,96412.0,96411.0,0.03047926]
[1733025797407,0.0823641,96412.0,96411.0,0.05894475]
[1733025797595,0.0813641,96412.0,96411.0,0.05294475]
[1733025797806,0.0813641,96412.0,96411.0,0.06694475]
[1733025797807,0.0833641,96412.0,96411.0,0.06694475]
[1733025797937,0.0823641,96412.0,96411.0,0.05894475]
[1733025798172,0.0823641,96412.0,96411.0,0.02147926]
[1733025798571,0.0823641,96412.0,96411.0,0.02092334]
[1733025798816,0.0823641,96412.0,96411.0,0.01692334]
[1733025799237,0.0823641,96412.0,96411.0,0.02547015]
[1733025799460,0.0813641,96412.0,96411.0,0.01492334]
[1733025799870,0.0813641,96412.0,96411.0,0.01692334]
[1733025800323,0.0813641,96412.0,96411.0,0.01492334]
[1733025800820,0.0813641,96412.0,96411.0,0.01692334]
[1733025801266,0.0813641,96412.0,96411.0,0.01292334]
[1733025801738,0.0823641,96412.0,96411.0,0.01792334]
[1733025802059,0.0813641,96412.0,96411.0,0.01292334]
[1733025802213,0.0813641,96412.0,96411.0,0.03931786]
[1733025802420,0.0813641,96412.0,96411.0,0.01692334]
[1733025802630,0.0813641,96412.0,96411.0,0.01947127]
[1733025802817,0.0813641,96412.0,96411.0,0.01492334]
[1733025803048,0.0813641,96412.0,96411.0,0.01692334]
[1733025805810,0.0813641,96412.0,96411.0,0.006]
[1733025807689,0.0813641,96412.0,96411.0,0.004]
[1733025808016,0.207445,96411.0,96404.0,0.00356382]
[1733025808257,0.207445,96411.0,96404.0,0.01454397]
[1733025808469,0.207455,96407.0,96404.0,0.01270815]
[1733025808673,0.207455,96407.0,96405.0,0.00455743]
[1733025808877,0.207455,96407.0,96404.0,0.01270815]
[1733025809680,0.207455,96407.0,96404.0,0.01570815]
[1733025810042,0.207455,96407.0,96404.0,0.004728]
[1733025810043,0.1312,96406.0,96404.0,0.004728]
[1733025810846,0.1312,96406.0,96404.0,0.001728]
[1733025811046,0.1312,96406.0,96404.0,0.006728]
[1733025811428,0.1312,96406.0,96404.0,0.001728]
[1733025811645,0.207458,96405.0,96404.0,0.007728]
[1733025812169,0.207458,96405.0,96404.0,0.010728]
[1733025812538,0.207458,96405.0,96404.0,0.004728]
[1733025812734,0.208458,96405.0,96404.0,0.007728]
[1733025812939,0.208458,96405.0,96404.0,0.010728]
[1733025821331,0.21029278,96405.0,96404.0,0.010728]
[1733025825820,0.31313799,96405.0,96404.0,0.010728]
[1733025826024,0.31130321,96405.0,96404.0,0.010728]
[1733025847836,0.31216691,96405.0,96404.0,0.010728]
[1733025850673,0.2093217,96405.0,96404.0,0.010728]
[1733025850845,0.0018637,96405.0,96404.0,0.010728]
[1733025853034,0.0018637,96405.0,96404.0,0.01528904]
[1733025853323,0.13119848,96405.0,96404.0,0.01528904]
[1733025854513,0.30957122,96405.0,96404.0,0.010728]
[1733025854785,0.23220891,96405.0,96404.0,0.01528899]
[1733025855011,0.23220891,96405.0,96404.0,0.010728]
[1733025855656,0.23120891,96405.0,96404.0,0.001728]
[1733025855966,0.23420891,96405.0,96404.0,0.001728]
[1733025857881,0.23620891,96405.0,96404.0,0.001728]
[1733025861015,0.32333476,96405.0,96404.0,0.001728]
[1733025862779,0.47333476,96405.0,96404.0,0.001728]
[1733025863013,0.50573056,96405.0,96404.0,0.001728]
[1733025864567,0.41860471,96405.0,96404.0,0.001728]
[1733025865214,0.38620891,96405.0,96404.0,0.001728]
[1733025866266,0.34010891,96405.0,96404.0,0.001728]
[1733025866478,0.19010891,96405.0,96404.0,0.001728]
[1733025866691,0.19194369,96405.0,96404.0,0.001728]
[1733025871662,0.11054369,96405.0,96404.0,0.001728]
[1733025883856,0.10850022,96405.0,96404.0,0.001728]
[1733025884522,0.10936392,96405.0,96404.0,0.001728]
[1733025889761,0.15926392,96405.0,96404.0,0.001728]
[1733025894263,0.10936392,96405.0,96404.0,0.001728]
[1733025894508,0.10736392,96405.0,96404.0,0.001728]
[1733025894726,0.10436392,96405.0,96404.0,0.001728]
[1733025894924,0.10636392,96405.0,96404.0,0.001728]
[1733025895399,0.10736392,96405.0,96404.0,0.001728]
[1733025895598,0.10636392,96405.0,96404.0,0.001728]
[1733025896259,0.10252914,96405.0,96404.0,0.001728]
[1733025896467,0.10436392,96405.0,96404.0,0.001728]
[1733025898495,0.10436392,96405.0,96404.0,0.002728]
[1733025900349,0.15426392,96405.0,96404.0,0.002728]
[1733025913228,0.41959096,96405.0,96404.0,0.002728]
[1733025913436,0.55779776,96405.0,96404.0,0.002728]
[1733025913868,0.60447829,96405.0,96404.0,0.002728]
[1733025914080,0.35746,96404.0,96403.0,0.00059599]
[1733025914498,0.72456371,96404.0,96403.0,9.9e-07]
[1733025915399,0.73056371,96404.0,96403.0,9.9e-07]
[1733025915633,0.91722778,96404.0,96403.0,9.9e-07]
[1733025916259,0.95022778,96404.0,96403.0,9.9e-07]
[1733025916525,0.519462,96403.0,96400.0,1.9e-07]
[1733025916747,0.6232769,96401.0,96400.0,1.9e-07]
[1733025916915,0.78470394,96401.0,96400.0,1.9e-07]
[1733025917121,0.64473825,96401.0,96400.0,1.9e-07]
[1733025917333,0.78470392,96401.0,96400.0,1.9e-07]
[1733025917916,0.78970392,96401.0,96400.0,1.9e-07]
[1733025918340,0.87879276,96401.0,96400.0,1.9e-07]
[1733025918565,0.73882709,96401.0,96400.0,1.9e-07]
[1733025918769,0.87873614,96401.0,96400.0,1.9e-07]
[1733025919683,0.73882709,96401.0,96400.0,1.9e-07]
[1733025919898,0.74182709,96401.0,96400.0,1.9e-07]
[1733025920601,0.76298342,96401.0,96400.0,1.9e-07]
[1733025921065,0.67389458,96401.0,96400.0,1.9e-07]
[1733025921284,0.74413549,96401.0,96400.0,1.9e-07]
[1733025921497,0.65089458,96401.0,96400.0,1.9e-07]
[1733025921934,0.61846754,96401.0,96400.0,1.9e-07]
[1733025923110,0.62929241,96401.0,96400.0,1.9e-07]
[1733025923780,0.58319241,96401.0,96400.0,1.9e-07]
[1733025926034,0.56203608,96401.0,96400.0,1.9e-07]
[1733025932531,0.60793608,96401.0,96400.0,1.9e-07]
[1733025932734,0.63093608,96401.0,96400.0,1.9e-07]
[1733025932977,0.66330614,96401.0,96400.0,1.9e-07]
[1733025933167,0.79535118,96401.0,96400.0,1.9e-07]
[1733025935345,0.80535118,96401.0,96400.0,1.9e-07]
[1733025935737,0.89856488,96401.0,96400.0,1.9e-07]
[1733025940988,0.80535118,96401.0,96400.0,1.9e-07]
[1733025941405,0.01,96400.0,96399.0,3.9e-07]
[1733025941585,0.54418151,96400.0,96399.0,3.9e-07]
[1733025941734,0.54234673,96400.0,96399.0,3.9e-07]
[1733025942568,0.69116564,96400.0,96399.0,3.9e-07]
[1733025942785,0.55134673,96400.0,96399.0,3.9e-07]
[1733025943402,0.56134673,96400.0,96399.0,3.9e-07]
[1733025943988,0.56834673,96400.0,96399.0,3.9e-07]
[1733025944198,0.80138098,96400.0,96399.0,3.9e-07]
[1733025944613,0.56834673,96400.0,96399.0,3.9e-07]
[1733025944874,0.80138098,96400.0,96399.0,3.9e-07]
[1733025945096,0.80138263,96400.0,96399.0,3.9e-07]
[1733025945304,0.56834673,96400.0,96399.0,3.9e-07]
[1733025946231,0.80138359,96400.0,96399.0,3.9e-07]
[1733025951750,0.56834673,96400.0,96399.0,3.9e-07]
[1733025951882,0.8013692,96400.0,96399.0,3.9e-07]
[1733025952098,0.56834673,96400.0,96399.0,3.9e-07]
[1733025952581,0.8013692,96400.0,96399.0,3.9e-07]
[1733025955132,0.80140956,96400.0,96399.0,3.9e-07]
[1733025955981,0.80227316,96400.0,96399.0,3.9e-07]
[1733025956711,0.56921033,96400.0,96399.0,3.9e-07]
[1733025957570,0.80231862,96400.0,96399.0,3.9e-07]
[1733025957790,0.56921033,96400.0,96399.0,3.9e-07]
[1733025970611,0.59842391,96400.0,96399.0,3.9e-07]
[1733025972753,0.87825042,96400.0,96399.0,3.9e-07]
[1733025973383,0.59842391,96400.0,96399.0,3.9e-07]
[1733025973605,0.87825042,96400.0,96399.0,3.9e-07]
[1733025974498,0.207529,96372.0,96371.0,0.0452]
[1733025974713,0.31037421,96372.0,96371.0,0.0452]
[1733025975606,0.31037421,96372.0,96371.0,0.0462]
[1733025975818,0.31043376,96372.0,96371.0,0.0462]
[1733025978498,0.31043376,96372.0,96371.0,0.1269]
[1733025979393,0.32132373,96372.0,96371.0,0.1269]
[1733025979603,0.31043376,96372.0,96371.0,0.1269]
[1733025981380,0.31043376,96372.0,96371.0,0.1286272]
[1733025981630,0.31043376,96372.0,96371.0,0.13324708]
[1733025983059,0.20758855,96372.0,96371.0,0.13324708]
[1733025999719,0.20758855,96372.0,96371.0,0.05254708]
[1733025999922,0.20758855,96372.0,96371.0,0.0479272]
[1733026000135,0.20758855,96372.0,96371.0,0.05254522]
[1733026001522,0.20758855,96372.0,96371.0,0.05454522]
[1733026002183,0.20758855,96372.0,96371.0,0.00734522]
[1733026002518,0.20758855,96372.0,96371.0,0.0027272]
[1733026012002,0.31043376,96372.0,96371.0,0.0027272]
[1733026012390,0.38743376,96372.0,96371.0,0.0027272]
[1733026012612,0.43433376,96372.0,96371.0,0.0027272]
[1733026014026,0.49961711,96372.0,96371.0,0.0027272]
[1733026014848,0.53205328,96372.0,96371.0,0.0027272]
[1733026015430,0.49961711,96372.0,96371.0,0.0027272]
[1733026016669,0.53204058,96372.0,96371.0,0.0027272]
[1733026019581,0.53204058,96372.0,96371.0,0.0017272]
[1733026019923,0.47875723,96372.0,96371.0,0.0017272]
[1733026020278,0.57210536,96372.0,96371.0,0.0017272]
[1733026020505,0.47875723,96372.0,96371.0,0.0017272]
[1733026023780,0.76877943,96372.0,96371.0,0.0017272]
[1733026024019,0.8154535,96372.0,96371.0,0.0017272]
[1733026024242,0.71784607,96372.0,96371.0,0.0017272]
[1733026024495,0.75084607,96372.0,96371.0,2e-07]
[1733026024948,0.93741392,96372.0,96371.0,2e-07]
[1733026025171,0.98421641,96372.0,96371.0,2e-07]
[1733026025713,0.75084607,96372.0,96371.0,2e-07]
[1733026025948,0.98421641,96372.0,96371.0,2e-07]
[1733026026199,0.75084607,96372.0,96371.0,2e-07]
[1733026026702,0.93732161,96372.0,96371.0,2e-07]
[1733026027511,0.75084607,96372.0,96371.0,2e-07]
[1733026028386,0.8906723,96372.0,96371.0,2e-07]
[1733026028886,0.75084607,96372.0,96371.0,2e-07]
[1733026029071,0.84404719,96372.0,96371.0,2e-07]
[1733026029222,0.75084607,96372.0,96371.0,2e-07]
[1733026031532,0.84403524,96372.0,96371.0,2e-07]
[1733026031876,0.75084607,96372.0,96371.0,2e-07]
[1733026032078,0.84401954,96372.0,96371.0,2e-07]
[1733026032508,0.75084607,96372.0,96371.0,2e-07]
[1733026042461,0.75257387,96372.0,96371.0,2e-07]
[1733026045067,0.74457387,96372.0,96371.0,2e-07]
[1733026045286,0.74057387,96372.0,96371.0,2e-07]
[1733026045532,0.74957387,96372.0,96371.0,2e-07]
[1733026045746,0.89829756,96372.0,96371.0,2e-07]
[1733026046218,0.89829756,96372.0,96354.0,0.0017272]
[1733026046219,0.521965,96355.0,96354.0,0.0017272]
[1733026046448,0.62423368,96355.0,96354.0,0.0017272]
[1733026046638,0.57533368,96355.0,96354.0,0.0017272]
[1733026047110,0.34283368,96355.0,96354.0,0.0017272]
[1733026047326,0.33119534,96355.0,96354.0,0.0017272]
[1733026047497,0.33519534,96355.0,96354.0,0.0017272]
[1733026048181,0.31441021,96355.0,96354.0,0.0017272]
[1733026049450,0.32141021,96355.0,96354.0,0.0017272]
[1733026050538,0.31741021,96355.0,96354.0,0.0017272]
[1733026050958,0.32141021,96355.0,96354.0,0.0017272]
[1733026051425,0.31741021,96355.0,96354.0,0.0017272]
[1733026051844,0.31841021,96355.0,96354.0,0.0017272]
[1733026052262,0.31141021,96355.0,96354.0,0.0017272]
[1733026052906,0.31841021,96355.0,96354.0,0.0017272]
[1733026053116,0.31141021,96355.0,96354.0,0.0017272]
[1733026053553,0.31341021,96355.0,96354.0,0.0017272]
[1733026053813,0.61716163,96355.0,96354.0,0.0017272]
[1733026054037,0.49582476,96355.0,96354.0,0.0017272]
[1733026055369,0.47475693,96355.0,96354.0,0.0017272]
[1733026056238,0.50717238,96355.0,96354.0,0.0017272]
[1733026056932,0.50717401,96355.0,96354.0,0.0017272]
[1733026061476,0.47475693,96355.0,96354.0,0.0017272]
[1733026061723,0.52245671,96355.0,96354.0,0.0017272]
[1733026061941,0.55487454,96355.0,96354.0,0.0017272]
[1733026062169,0.34582804,96355.0,96354.0,0.0017272]
[1733026062389,0.31341021,96355.0,96354.0,0.0017272]
[1733026066076,0.32468592,96355.0,96354.0,0.0017272]
[1733026089487,0.10584521,96355.0,96354.0,0.0017272]
[1733026089784,0.10767999,96355.0,96354.0,0.0017272]
[1733026090330,0.10467999,96355.0,96354.0,0.0017272]
[1733026090720,0.10584521,96355.0,96354.0,0.0017272]
[1733026091102,0.10284521,96355.0,96354.0,0.0017272]
[1733026091305,0.10467999,96355.0,96354.0,0.0027272]
[1733026092888,0.15793278,96355.0,96354.0,0.0027272]
[1733026094164,0.15793278,96355.0,96354.0,0.0017272]
[1733026094384,0.16093278,96355.0,96354.0,0.0017272]
[1733026094601,0.10767999,96355.0,96354.0,0.0017272]
[1733026096257,0.10567999,96355.0,96354.0,0.0017272]
[1733026096496,0.10667999,96355.0,96354.0,0.0017272]
[1733026096717,0.10767999,96355.0,96354.0,0.0017272]
[1733026102899,0.003,96355.0,96354.0,0.1245272]
[1733026103111,0.0017278,96361.0,96354.0,0.12636403]
[1733026103310,0.0017278,96361.0,96356.0,0.207563]
[1733026103532,0.0017278,96361.0,96356.0,0.00183674]
[1733026103738,0.0017278,96361.0,96357.0,0.21176244]
[1733026106333,0.0017278,96361.0,96357.0,0.21376244]
[1733026112579,0.0017278,96361.0,96357.0,0.00620144]
[1733026119768,0.0017278,96361.0,96357.0,0.00420144]
[1733026120206,0.0017278,96361.0,96357.0,0.001]
[1733026120420,0.0017278,96361.0,96358.0,0.00413284]
[1733026123739,0.0017278,96361.0,96358.0,0.00513284]
[1733026124910,0.0017278,96361.0,96358.0,0.001]
[1733026125137,0.0017278,96361.0,96359.0,0.0041331]
[1733026126895,0.0017278,96361.0,96357.0,0.012932]
[1733026127110,0.0017278,96361.0,96360.0,0.00413221]
[1733026127326,0.0017278,96361.0,96359.0,0.001]
[1733026127533,0.0017278,96361.0,96360.0,0.00413221]
[1733026127761,0.0017278,96361.0,96357.0,0.012932]
[1733026128090,0.0017278,96361.0,96358.0,0.00413398]
[1733026128529,0.0017278,96361.0,96360.0,0.001]
[1733026129801,0.0017278,96361.0,96357.0,0.012932]
[1733026130207,0.0017278,96361.0,96358.0,0.00513398]
[1733026130407,0.0017278,96361.0,96358.0,0.00413398]
[1733026131012,0.0017278,96361.0,96357.0,0.012932]
[1733026131593,0.0017278,96361.0,96358.0,0.00413398]
[1733026132026,0.0017278,96361.0,96358.0,0.00513398]
[1733026132859,0.0017278,96361.0,96357.0,0.00306598]
[1733026133095,0.0017278,96361.0,96359.0,0.0041331]
[1733026133302,0.0017278,96361.0,96357.0,0.001727]
[1733026133516,0.0017278,96361.0,96357.0,0.002727]
[1733026134161,0.0017278,96361.0,96358.0,0.00399618]
[1733026134782,0.0017278,96361.0,96358.0,0.00572318]
[1733026134933,0.0017278,96361.0,96358.0,0.001727]
[1733026135147,0.0017278,96361.0,96359.0,0.0039963]
[1733026136154,0.0017278,96361.0,96358.0,0.001727]
[1733026136557,0.0017278,96361.0,96359.0,0.0039963]
[1733026137014,0.0017278,96361.0,96358.0,0.001727]
[1733026137442,0.0017278,96361.0,96359.0,0.0039963]
[1733026137869,0.0017278,96361.0,96358.0,0.001727]
[1733026138529,0.0017278,96361.0,96359.0,0.0039963]
[1733026138747,0.0017278,96361.0,96358.0,0.001727]
[1733026138953,0.0017278,96361.0,96360.0,0.00399542]
[1733026139406,0.0017278,96361.0,96358.0,0.001727]
[1733026139810,0.0017278,96361.0,96359.0,0.0039963]
[1733026140019,0.0017278,96361.0,96358.0,0.001727]
[1733026140488,0.0017278,96361.0,96359.0,0.0039963]
[1733026144018,0.43940021,96360.0,96359.0,0.0039963]
[1733026144474,0.43940021,96360.0,96358.0,0.001727]
[1733026144691,0.00183478,96359.0,96358.0,0.001727]
[1733026144905,0.10467999,96359.0,96358.0,0.001727]
[1733026146002,0.10467999,96359.0,96358.0,0.002727]
[1733026146654,0.16973137,96359.0,96358.0,0.001727]
[1733026147155,0.17173137,96359.0,96358.0,0.001727]
[1733026148237,0.10667999,96359.0,96358.0,0.001727]
[1733026148663,0.002,96359.0,96358.0,0.001727]
[1733026149331,0.002,96359.0,96358.0,0.00572419]
[1733026149332,0.003,96359.0,96358.0,0.00572419]
[1733026149555,0.001,96359.0,96358.0,0.21511995]
[1733026149800,0.0017278,96361.0,96358.0,0.4476388]
[1733026150015,0.0017278,96361.0,96360.0,0.39366221]
[1733026150426,0.0017278,96361.0,96360.0,0.3976562]
[1733026151122,0.0027278,96361.0,96360.0,0.3976562]
[1733026151329,0.0017278,96361.0,96360.0,0.3976562]
[1733026151802,0.0017278,96361.0,96360.0,0.1901012]
[1733026152024,0.0017278,96361.0,96360.0,0.00399399]
[1733026152443,0.0017278,96361.0,96360.0,0.00583061]
[1733026152623,0.0027278,96361.0,96360.0,0.00583061]
[1733026152827,0.0027278,96361.0,96360.0,0.19008696]
[1733026153051,0.0027278,96361.0,96360.0,0.00583061]
[1733026153265,0.0027278,96361.0,96360.0,0.05603061]
[1733026153701,0.0027278,96361.0,96360.0,0.24212358]
[1733026153928,0.0027278,96361.0,96360.0,0.24028696]
[1733026154416,0.0027278,96361.0,96360.0,0.05419399]
[1733026154638,0.0027278,96361.0,96360.0,0.24209171]
[1733026154903,0.0027278,96361.0,96360.0,0.24025509]
[1733026155571,0.0027278,96361.0,96360.0,0.05419399]
[1733026155820,0.0027278,96361.0,96360.0,0.05603061]
[1733026156055,0.0027278,96361.0,96360.0,0.24209171]
[1733026156315,0.0027278,96361.0,96360.0,0.24025509]
[1733026156552,0.0027278,96361.0,96360.0,0.19105509]
[1733026156721,0.0027278,96361.0,96360.0,0.19065509]
[1733026156928,0.0027278,96361.0,96360.0,0.00643061]
[1733026157953,0.0027278,96361.0,96360.0,0.00459399]
[1733026158627,0.0027278,96361.0,96360.0,0.14411552]
[1733026158880,0.0027278,96361.0,96360.0,0.14311552]
[1733026159077,0.0027278,96361.0,96360.0,0.14411552]
[1733026159277,0.0017278,96361.0,96360.0,0.14411552]
[1733026159713,0.0017278,96361.0,96360.0,0.14311552]
[1733026159919,0.0017278,96361.0,96360.0,0.14411552]
[1733026160116,0.0027278,96361.0,96360.0,0.14411552]
[1733026160746,0.0027278,96361.0,96360.0,0.00459399]
[1733026161397,0.0027278,96361.0,96360.0,0.14410662]
[1733026161815,0.0027278,96361.0,96360.0,0.00459399]
[1733026162261,0.0027278,96361.0,96360.0,0.1440968]
[1733026163364,0.0027278,96361.0,96360.0,0.00459399]
[1733026163576,0.0027278,96361.0,96360.0,0.14409673]
[1733026163840,0.0027278,96361.0,96360.0,0.14409304]
[1733026164262,0.0027278,96361.0,96360.0,0.00459399]
[1733026165242,0.0027278,96361.0,96360.0,0.13674747]
[1733026165454,0.0027278,96361.0,96360.0,0.37925203]
[1733026165659,0.00178735,96372.0,96371.0,0.254931]
[1733026166076,0.00178735,96372.0,96371.0,0.33509816]
[1733026166896,0.00178735,96372.0,96371.0,0.21149816]
[1733026167106,0.00178735,96372.0,96371.0,0.26472976]
[1733026167546,0.00178735,96372.0,96371.0,0.49697258]
[1733026167742,0.00278735,96372.0,96371.0,0.49697258]
[1733026167949,0.00278735,96372.0,96371.0,0.47092976]
[1733026168350,0.00278735,96372.0,96371.0,0.55052976]
[1733026168599,0.00378735,96372.0,96371.0,0.55352976]
[1733026170096,0.00378735,96372.0,96371.0,0.56480005]
[1733026172685,0.00378735,96372.0,96371.0,0.79658872]
[1733026172883,0.00378735,96372.0,96371.0,0.56480005]
[1733026174031,0.00378735,96372.0,96371.0,0.78647712]
[1733026174211,0.00378735,96372.0,96371.0,0.56480005]
[1733026174422,0.00378735,96372.0,96371.0,0.79641771]
[1733026175598,0.00378735,96372.0,96371.0,0.93226292]
[1733026175780,0.00378735,96372.0,96371.0,0.70064526]
[1733026177991,0.00378735,96372.0,96371.0,0.69764526]
[1733026178211,0.00278735,96372.0,96371.0,0.69764526]
[1733026178425,0.00378735,96372.0,96371.0,0.70564526]
[1733026178879,0.00378735,96372.0,96371.0,0.81115876]
[1733026179141,0.00378735,96372.0,96371.0,0.80115876]
[1733026179356,0.00378735,96372.0,96371.0,0.72155876]
[1733026179572,0.00378735,96372.0,96371.0,0.28400005]
[1733026179996,0.00278735,96372.0,96371.0,0.28400005]
[1733026180214,0.00278735,96372.0,96371.0,0.29300005]
[1733026183889,0.00278735,96372.0,96371.0,0.58880005]
[1733026184093,0.0824636,96399.0,96374.0,0.01]
[1733026184298,0.0824636,96399.0,96394.0,0.20748]
[1733026184734,0.0824636,96399.0,96395.0,0.00392827]
[1733026184993,0.0008636,96399.0,96396.0,0.207477]
[1733026185192,0.0008636,96399.0,96397.0,0.0057625]
[1733026185431,0.0008636,96399.0,96398.0,0.22879695]
[1733026185809,0.0008636,96399.0,96398.0,0.23272257]
[1733026187590,0.0008636,96399.0,96398.0,0.23472257]
[1733026188090,0.0008636,96399.0,96398.0,0.23572257]
[1733026197901,0.0008636,96399.0,96398.0,0.02824957]
[1733026200592,0.0008636,96399.0,96398.0,0.03008552]